lending/lending_fUSD_20240110
["ID","MTS","AMOUNT","RATE_DAILY","PERIOD"]
[311023457,1704873043835,-500.0,0.00030136,2]
[311023459,1704873043844,-1197.89,0.00030136,2]
[311023461,1704873043853,-565.37,0.00030136,2]
[311023463,1704873043862,-500.0,0.00030136,2]
[311023465,1704873043871,-1242.31,0.00030136,2]
[311023467,1704873043881,-500.0,0.00030136,2]
[311023469,1704873043891,-1024.31,0.00030136,2]
[311023471,1704873043900,-535.71,0.00030136,2]
[311023473,1704873043909,-1696.11,0.00030136,2]
[311023475,1704873043919,-1358.46,0.00030136,2]
[311023477,1704873043928,-500.0,0.00030136,2]
[311023479,1704873043937,-1165.8,0.00030136,2]
[311023481,1704873043947,-1127.04,0.00030136,2]
[311023483,1704873043956,-1121.62,0.00030136,2]
[311023485,1704873043966,-500.0,0.00030136,2]
[311023487,1704873043975,-500.0,0.00030136,2]
[311023489,1704873043985,-500.0,0.00030136,2]
[311023491,1704873043994,-500.0,0.00030136,2]
[311023493,1704873044003,-1563.61,0.00030136,2]
[311023494,1704873044012,-500.0,0.00030136,2]
[311023496,1704873044021,-500.0,0.00030136,2]
[311023498,1704873044031,-629.23,0.00030136,2]
[311023500,1704873044040,-1057.05,0.00030136,2]
[311023502,1704873044049,-500.0,0.00030136,2]
[311023504,1704873044058,-1707.59,0.00030136,2]
[311023506,1704873044068,-1314.54,0.00030136,2]
[311023508,1704873044077,-616.09,0.00030136,2]
[311023510,1704873044086,-798.58,0.00030136,2]
[311023512,1704873044095,-654.04,0.00030136,2]
[311023514,1704873044105,-500.0,0.00030136,2]
[311023516,1704873044114,-500.0,0.00030136,2]
[311023518,1704873044124,-500.0,0.00030136,2]
[311023520,1704873044135,-791.78,0.00030136,2]
[311023522,1704873044145,-1519.78,0.00030136,2]
[311023524,1704873044154,-1032.6,0.00030136,2]
[311023526,1704873044164,-500.0,0.00030136,2]
[311023528,1704873044174,-944.59,0.00030136,2]
[311023530,1704873044184,-500.0,0.00030136,2]
[311023532,1704873044195,-500.0,0.00030136,2]
[311023534,1704873044204,-1070.99,0.00030136,2]
[311023536,1704873044214,-500.0,0.00030136,2]
[311023538,1704873044223,-500.0,0.00030136,2]
[311023540,1704873044232,-500.0,0.00030136,2]
[311023542,1704873044241,-500.0,0.00030136,2]
[311023544,1704873044249,-834.05,0.00030136,2]
[311023547,1704873044268,-542.28,0.00030136,2]
[311023550,1704873044280,-500.0,0.00030136,2]
[311023552,1704873044288,-1242.0,0.00030136,2]
[311023554,1704873044297,-542.76,0.00030136,2]
[311023556,1704873044306,-500.0,0.00030136,2]
[311023558,1704873044316,-1254.84,0.00030136,2]
[311023560,1704873044326,-1541.66,0.00030136,2]
[311023562,1704873044335,-1323.81,0.00030136,2]
[311023564,1704873044345,-264.59920744,0.00030136,2]
[311023566,1704873044354,-500.0,0.00030136,2]
[311023568,1704873044363,-1114.88,0.00030136,2]
[311023570,1704873044373,-1076.73,0.00030136,2]
[311023572,1704873044382,-880.32,0.00030136,2]
[311023574,1704873044391,-886.36,0.00030136,2]
[311023576,1704873044400,-500.0,0.00030136,2]
[311023578,1704873044409,-951.35,0.00030136,2]
[311023580,1704873044418,-539.61,0.00030136,2]
[311023582,1704873044427,-1305.55,0.00030136,2]
[311023584,1704873044437,-500.0,0.00030136,2]
[311023586,1704873044446,-500.0,0.00030136,2]
[311023588,1704873044455,-516.43101878,0.00030136,2]
[311023590,1704873044465,-500.0,0.00030136,2]
[311023592,1704873044474,-2061.61,0.00030136,2]
[311023594,1704873044483,-661.44,0.00030136,2]
[311023596,1704873044492,-500.0,0.00030136,2]
[311023598,1704873044501,-1094.74,0.00030136,2]
[311023600,1704873044510,-500.0,0.00030136,2]
[311023602,1704873044519,-1473.64,0.00030136,2]
[311023604,1704873044528,-1657.99,0.00030136,2]
[311023606,1704873044537,-905.83,0.00030136,2]
[311023608,1704873044547,-500.0,0.00030136,2]
[311023610,1704873044556,-1210.18,0.00030136,2]
[311023612,1704873044565,-557.46,0.00030136,2]
[311023614,1704873044574,-500.0,0.00030136,2]
[311023616,1704873044583,-500.0,0.00030136,2]
[311023618,1704873044593,-1402.24,0.00030136,2]
[311023620,1704873044602,-1285.08,0.00030136,2]
[311023622,1704873044611,-684.33,0.00030136,2]
[311023624,1704873044620,-500.0,0.00030136,2]
[311023626,1704873044629,-743.21,0.00030136,2]
[311023628,1704873044638,-505.79433288,0.00030136,2]
[311023630,1704873044649,-645.01,0.00030136,2]
[311023632,1704873044659,-156.15562238,0.00030136,2]
[311023635,1704873044668,-500.0,0.00030136,2]
[311023637,1704873044677,-500.0,0.00030136,2]
[311023639,1704873044688,-665.21,0.00030136,2]
[311023641,1704873044697,-627.64,0.00030136,2]
[311023643,1704873044706,-500.0,0.00030136,2]
[311023645,1704873044715,-651.24,0.00030136,2]
[311023647,1704873044725,-500.0,0.00030136,2]
[311023649,1704873044734,-792.43,0.00030136,2]
[311023651,1704873044744,-500.0,0.00030136,2]
[311023653,1704873044753,-1236.53,0.00030136,2]
[311023655,1704873044762,-703.78,0.00030136,2]
[311023657,1704873044771,-500.0,0.00030136,2]
[311023659,1704873044780,-500.0,0.00030136,2]
[311023661,1704873044789,-1669.06,0.00030136,2]
[311023663,1704873044798,-500.0,0.00030136,2]
[311023665,1704873044807,-2220.47,0.00030136,2]
[311023667,1704873044816,-500.0,0.00030136,2]
[311023669,1704873044827,-500.0,0.00030136,2]
[311023670,1704873044836,-608.94,0.00030136,2]
[311023671,1704873044846,-642.72,0.00030136,2]
[311023672,1704873044855,-800.0,0.00030136,2]
[311023673,1704873044864,-500.0,0.00030136,2]
[311023674,1704873044873,-500.0,0.00030136,2]
[311023675,1704873044882,-1863.94,0.00030136,2]
[311023677,1704873044891,-1863.94,0.00030136,2]
[311023679,1704873044900,-500.0,0.00030136,2]
[311023681,1704873044909,-1863.94,0.00030136,2]
[311023683,1704873044918,-1863.94,0.00030136,2]
[311023685,1704873044928,-1863.94,0.00030136,2]
[311023687,1704873044936,-1863.94,0.00030136,2]
[311023689,1704873044946,-1863.94,0.00030136,2]
[311023691,1704873044956,-1863.94,0.00030136,2]
[311023692,1704873044965,-1863.94,0.00030136,2]
[311023693,1704873044975,-500.18615244,0.00030136,2]
[311023694,1704873044984,-1863.94,0.00030136,2]
[311023695,1704873044994,-945.82,0.00030136,2]
[311023696,1704873045003,-1863.94,0.00030136,2]
[311023697,1704873045013,-658.74,0.00030136,2]
[311023698,1704873045023,-500.0,0.00030136,2]
[311023699,1704873045034,-666.71,0.00030136,2]
[311023700,1704873045045,-500.0,0.00030136,2]
[311023701,1704873045055,-1104.64,0.00030136,2]
[311023702,1704873045066,-500.0,0.00030136,2]
[311023703,1704873045075,-500.0,0.00030136,2]
[311023704,1704873045085,-1401.68,0.00030136,2]
[311023706,1704873045095,-1009.15044663,0.00030136,2]
[311023726,1704873045415,-1424.61,0.00030136,2]
[311023727,1704873045425,-1037.5,0.00030136,2]
[311023728,1704873045434,-500.0,0.00030136,2]
[311023729,1704873045444,-500.0,0.00030136,2]
[311023730,1704873045454,-500.0,0.00030136,2]
[311023731,1704873045463,-500.0,0.00030136,2]
[311023732,1704873045473,-500.0,0.00030136,2]
[311023733,1704873045482,-544.50864749,0.00030136,2]
[311023734,1704873045491,-500.0,0.00030136,2]
[311023735,1704873045501,-500.0,0.00030136,2]
[311023736,1704873045510,-1293.7,0.00030136,2]
[311023737,1704873045519,-500.0,0.00030136,2]
[311023738,1704873045529,-774.19,0.00030136,2]
[311023739,1704873045538,-775.07,0.00030136,2]
[311023740,1704873045547,-500.0,0.00030136,2]
[311023741,1704873045557,-500.0,0.00030136,2]
[311023742,1704873045566,-500.0,0.00030136,2]
[311023743,1704873045575,-194.07057596,0.00030136,2]
[311023744,1704873045584,-500.0,0.00030136,2]
[311023745,1704873045595,-960.98,0.00030136,2]
[311023746,1704873045604,-504.70441648,0.00030136,2]
[311023747,1704873045613,-500.0,0.00030136,2]
[311023748,1704873045622,-500.0,0.00030136,2]
[311023749,1704873045631,-1334.99,0.00030136,2]
[311023750,1704873045641,-500.0,0.00030136,2]
[311023751,1704873045650,-500.0,0.00030136,2]
[311023752,1704873045659,-875.29,0.00030136,2]
[311023753,1704873045668,-500.0,0.00030136,2]
[311023754,1704873045677,-723.68,0.00030136,2]
[311023755,1704873045686,-1098.09,0.00030136,2]
[311023756,1704873045696,-500.0,0.00030136,2]
[311023757,1704873045706,-786.08,0.00030136,2]
[311023758,1704873045715,-1517.62,0.00030136,2]
[311023759,1704873045724,-572.06,0.00030136,2]
[311023760,1704873045733,-571.35,0.00030136,2]
[311023761,1704873045742,-500.0,0.00030136,2]
[311023762,1704873045752,-500.0,0.00030136,2]
[311023763,1704873045761,-500.0,0.00030136,2]
[311023764,1704873045771,-500.0,0.00030136,2]
[311023765,1704873045780,-500.0,0.00030136,2]
[311023766,1704873045789,-500.0,0.00030136,2]
[311023767,1704873045799,-500.0,0.00030136,2]
[311023768,1704873045809,-500.0,0.00030136,2]
[311023769,1704873045818,-866.33,0.00030136,2]
[311023770,1704873045828,-1000.0,0.00030136,7]
[311023771,1704873045837,-419.77235761,0.00030136,2]
[311023772,1704873045846,-1313.47,0.00030136,2]
[311023773,1704873045855,-836.6,0.00030136,2]
[311023774,1704873045864,-500.0,0.00030136,2]
[311023775,1704873045874,-1152.55,0.00030136,2]
[311023776,1704873045883,-500.0,0.00030136,2]
[311023777,1704873045892,-500.0,0.00030136,2]
[311023778,1704873045902,-500.0,0.00030136,2]
[311023779,1704873045911,-1556.25,0.00030136,2]
[311023780,1704873045920,-1256.03,0.00030136,2]
[311023781,1704873045930,-500.0,0.00030136,2]
[311023782,1704873045939,-1140.72,0.00030136,2]
[311023783,1704873045949,-508.02866877,0.00030136,2]
[311023784,1704873045959,-500.0,0.00030136,2]
[311023785,1704873045969,-1324.64,0.00030136,2]
[311023786,1704873045979,-500.0,0.00030136,2]
[311023787,1704873045988,-500.0,0.00030136,2]
[311023788,1704873045998,-1218.71,0.00030136,2]
[311023789,1704873046008,-853.1,0.00030136,2]
[311023790,1704873046017,-500.0,0.00030136,2]
[311023791,1704873046027,-1269.98,0.00030136,2]
[311023792,1704873046036,-728.65,0.00030136,2]
[311023793,1704873046046,-1298.05,0.00030136,2]
[311023794,1704873046056,-1713.75,0.00030136,2]
[311023795,1704873046066,-500.0,0.00030136,2]
[311023796,1704873046075,-500.0,0.00030136,2]
[311023797,1704873046085,-500.0,0.00030136,2]
[311023798,1704873046094,-831.24,0.00030136,2]
[311023799,1704873046104,-569.63,0.00030136,2]
[311023800,1704873046113,-435.06947295,0.00030136,2]
[311023801,1704873046122,-500.0,0.00030136,2]
[311023802,1704873046132,-2031.17,0.00030136,2]
[311023803,1704873046142,-500.0,0.00030136,2]
[311023804,1704873046151,-500.0,0.00030136,2]
[311023805,1704873046161,-524.24,0.00030136,2]
[311023806,1704873046171,-1601.7,0.00030136,2]
[311023807,1704873046181,-421.40613553,0.00030136,2]
[311023808,1704873046190,-500.0,0.00030136,2]
[311023809,1704873046199,-1017.74,0.00030136,2]
[311023810,1704873046209,-500.0,0.00030136,2]
[311023811,1704873046220,-500.0,0.00030136,2]
[311023812,1704873046230,-791.41,0.00030136,2]
[311023813,1704873046241,-1118.71,0.00030136,2]
[311023814,1704873046251,-500.0,0.00030136,2]
[311023815,1704873046261,-626.68,0.00030136,2]
[311023816,1704873046271,-1049.71,0.00030136,2]
[311023817,1704873046281,-500.0,0.00030136,2]
[311023818,1704873046290,-500.0,0.00030136,2]
[311023819,1704873046299,-500.0,0.00030136,2]
[311023820,1704873046309,-500.0,0.00030136,2]
[311023821,1704873046318,-500.0,0.00030136,2]
[311023822,1704873046327,-500.0,0.00030136,2]
[311023823,1704873046336,-500.0,0.00030136,2]
[311023824,1704873046346,-500.0,0.00030136,2]
[311023825,1704873046355,-733.68,0.00030136,2]
[311023826,1704873046364,-500.0,0.00030136,2]
[311023827,1704873046373,-500.0,0.00030136,2]
[311023828,1704873046383,-500.0,0.00030136,2]
[311023829,1704873046392,-500.0,0.00030136,2]
[311023830,1704873046401,-500.0,0.00030136,2]
[311023831,1704873046411,-500.0,0.00030136,2]
[311023832,1704873046420,-500.0,0.00030136,2]
[311023833,1704873046429,-500.0,0.00030136,2]
[311023834,1704873046439,-500.0,0.00030136,2]
[311023835,1704873046448,-504.16280203,0.00030136,2]
[311023836,1704873046458,-500.0,0.00030136,2]
[311023837,1704873046467,-500.0,0.00030136,7]
[311023838,1704873046477,-500.0,0.00030136,2]
[311023839,1704873046486,-500.0,0.00030136,2]
[311023840,1704873046495,-561.28,0.00030136,2]
[311023841,1704873046505,-500.0,0.00030136,2]
[311023842,1704873046514,-902.13,0.00030136,2]
[311023843,1704873046523,-500.0,0.00030136,2]
[311023844,1704873046532,-1053.88,0.00030136,2]
[311023845,1704873046541,-1088.38,0.00030136,2]
[311023846,1704873046551,-835.24,0.00030136,2]
[311023847,1704873046560,-500.0,0.00030136,2]
[311023848,1704873046569,-721.46,0.00030136,2]
[311023849,1704873046578,-500.0,0.00030136,2]
[311023850,1704873046587,-500.0,0.00030136,2]
[311023851,1704873046597,-500.0,0.00030136,2]
[311023852,1704873046606,-500.0,0.00030136,2]
[311023853,1704873046618,-919.69,0.00030136,2]
[311023854,1704873046627,-1391.47,0.00030136,2]
[311023855,1704873046636,-649.26,0.00030136,2]
[311023856,1704873046646,-500.0,0.00030136,2]
[311023857,1704873046655,-700.3,0.00030136,2]
[311023858,1704873046665,-500.0,0.00030136,2]
[311023859,1704873046674,-500.0,0.00030136,2]
[311023860,1704873046683,-2227.04,0.00030136,2]
[311023861,1704873046693,-596.15,0.00030136,2]
[311023862,1704873046702,-504.01290136,0.00030136,2]
[311023863,1704873046711,-1069.65,0.00030136,2]
[311023864,1704873046721,-1400.2,0.00030136,2]
[311023865,1704873046730,-500.0,0.00030136,2]
[311023866,1704873046739,-641.27,0.00030136,2]
[311023867,1704873046748,-1327.8,0.00030136,2]
[311023868,1704873046757,-513.46,0.00030136,2]
[311023869,1704873046766,-500.0,0.00030136,2]
[311023870,1704873046775,-637.79115907,0.00030136,2]
[311023871,1704873046785,-500.0,0.00030136,2]
[311023872,1704873046794,-500.0,0.00030136,2]
[311023873,1704873046803,-695.32,0.00030136,2]
[311023874,1704873046812,-1487.28,0.00030136,2]
[311023875,1704873046821,-1507.14,0.00030136,2]
[311023876,1704873046830,-930.79,0.00030136,2]
[311023877,1704873046840,-500.0,0.00030136,2]
[311023878,1704873046849,-500.0,0.00030136,2]
[311023879,1704873046858,-500.0,0.00030136,2]
[311023880,1704873046867,-628.25,0.00030136,2]
[311023881,1704873046878,-1292.48,0.00030136,2]
[311023882,1704873046887,-1760.51,0.00030136,2]
[311023883,1704873046897,-500.0,0.00030136,2]
[311023884,1704873046907,-500.0,0.00030136,2]
[311023885,1704873046917,-502.84599982,0.00030136,2]
[311023886,1704873046928,-500.0,0.00030136,2]
[311023887,1704873046938,-500.0,0.00030136,2]
[311023888,1704873046948,-500.0,0.00030136,2]
[311023889,1704873046958,-500.0,0.00030136,2]
[311023890,1704873046968,-1101.16,0.00030136,2]
[311023891,1704873046977,-502.33084127,0.00030136,2]
[311023892,1704873046988,-500.0,0.00030136,2]
[311023893,1704873046998,-500.0,0.00030136,2]
[311023894,1704873047008,-500.0,0.00030136,2]
[311023895,1704873047017,-501.89537545,0.00030136,2]
[311023896,1704873047027,-500.0,0.00030136,2]
[311023897,1704873047037,-500.0,0.00030136,2]
[311023898,1704873047047,-1015.54,0.00030136,2]
[311023899,1704873047057,-500.0,0.00030136,2]
[311023900,1704873047066,-1243.94,0.00030136,2]
[311023901,1704873047075,-1980.15,0.00030136,2]
[311023902,1704873047085,-2469.6,0.00030136,2]
[311023903,1704873047096,-1197.88,0.00030136,2]
[311023904,1704873047105,-507.65158137,0.00030136,2]
[311023905,1704873047114,-747.7,0.00030136,2]
[311023906,1704873047123,-503.16,0.00030136,2]
[311023907,1704873047133,-509.59328084,0.00030136,2]
[311023908,1704873047142,-1264.06,0.00030136,2]
[311023909,1704873047151,-1211.0,0.00030136,2]
[311023910,1704873047160,-500.0,0.00030136,2]
[311023911,1704873047169,-500.0,0.00030136,2]
[311023912,1704873047178,-593.51,0.00030136,2]
[311023913,1704873047188,-500.0,0.00030136,2]
[311023914,1704873047197,-500.0,0.00030136,2]
[311023915,1704873047206,-1414.15,0.00030136,2]
[311023916,1704873047215,-813.85,0.00030136,2]
[311023917,1704873047224,-500.0,0.00030136,2]
[311023918,1704873047233,-1420.4,0.00030136,2]
[311023919,1704873047243,-500.0,0.00030136,2]
[311023920,1704873047252,-501.24596239,0.00030136,2]
[311023921,1704873047261,-500.0,0.00030136,2]
[311023922,1704873047270,-1558.39,0.00030136,2]
[311023923,1704873047279,-957.63,0.00030136,2]
[311023924,1704873047289,-500.0,0.00030136,2]
[311023925,1704873047298,-500.0,0.00030136,2]
[311023926,1704873047308,-824.71,0.00030136,2]
[311023927,1704873047317,-532.28,0.00030136,2]
[311023928,1704873047328,-1129.98,0.00030136,2]
[311023929,1704873047338,-500.0,0.00030136,2]
[311023930,1704873047348,-736.45,0.00030136,2]
[311023931,1704873047363,-981.71,0.00030136,2]
[311023932,1704873047372,-876.95,0.00030136,2]
[311023933,1704873047381,-1067.63,0.00030136,2]
[311023934,1704873047390,-500.0,0.00030136,2]
[311023935,1704873047400,-500.0,0.00030136,2]
[311023936,1704873047410,-500.0,0.00030136,2]
[311023937,1704873047419,-500.0,0.00030136,2]
[311023938,1704873047428,-630.17,0.00030136,2]
[311023939,1704873047437,-500.0,0.00030136,2]
[311023940,1704873047448,-1523.04,0.00030136,2]
[311023941,1704873047458,-1018.05,0.00030136,2]
[311023942,1704873047467,-817.46,0.00030136,2]
[311023943,1704873047476,-1324.82,0.00030136,2]
[311023944,1704873047485,-1111.27,0.00030136,2]
[311023945,1704873047496,-607.77,0.00030136,2]
[311023946,1704873047506,-667.86,0.00030136,2]
[311023947,1704873047516,-500.0,0.00030136,2]
[311023948,1704873047525,-502.48160721,0.00030136,2]
[311023949,1704873047535,-515.0,0.00030136,2]
[311023950,1704873047547,-500.0,0.00030136,2]
[311023951,1704873047557,-967.53,0.00030136,2]
[311023952,1704873047566,-500.0,0.00030136,2]
[311023953,1704873047575,-500.0,0.00030136,2]
[311023954,1704873047585,-500.0,0.00030136,2]
[311023955,1704873047594,-500.0,0.00030136,2]
[311023956,1704873047604,-1566.35,0.00030136,2]
[311023957,1704873047613,-500.0,0.00030136,2]
[311023958,1704873047623,-500.0,0.00030136,2]
[311023959,1704873047634,-660.62,0.00030136,2]
[311023960,1704873047643,-1709.95,0.00030136,2]
[311023961,1704873047652,-500.0,0.00030136,2]
[311023962,1704873047662,-500.0,0.00030136,2]
[311023963,1704873047671,-1326.24,0.00030136,2]
[311023964,1704873047680,-1644.17,0.00030136,2]
[311023965,1704873047689,-500.0,0.00030136,2]
[311023966,1704873047698,-500.0,0.00030136,2]
[311023967,1704873047815,-500.0,0.00030136,2]
[311023968,1704873047825,-500.0,0.00030136,2]
[311023969,1704873047834,-563.55,0.00030136,2]
[311023970,1704873047844,-970.8,0.00030136,2]
[311023971,1704873047854,-509.65736701,0.00030136,2]
[311023972,1704873047863,-500.0,0.00030136,2]
[311023973,1704873047872,-978.28,0.00030136,2]
[311023974,1704873047882,-500.0,0.00030136,2]
[311023975,1704873047891,-910.11,0.00030136,2]
[311023976,1704873047901,-500.0,0.00030136,2]
[311023977,1704873047912,-851.03,0.00030136,2]
[311023978,1704873047921,-500.0,0.00030136,2]
[311023979,1704873047930,-597.67,0.00030136,2]
[311023980,1704873047939,-500.0,0.00030136,2]
[311023981,1704873047949,-1073.72,0.00030136,2]
[311023982,1704873047958,-500.0,0.00030136,2]
[311023983,1704873047967,-500.0,0.00030136,2]
[311023984,1704873047976,-500.0,0.00030136,2]
[311023985,1704873047986,-502.11231436,0.00030136,2]
[311023986,1704873047995,-500.0,0.00030136,2]
[311023987,1704873048004,-790.85,0.00030136,2]
[311023988,1704873048014,-441.76596216,0.00030136,2]
[311023989,1704873048023,-1303.11,0.00030136,2]
[311023990,1704873048033,-1749.73,0.00030136,2]
[311023991,1704873048044,-500.0,0.00030136,2]
[311023992,1704873048054,-500.0,0.00030136,2]
[311023993,1704873048064,-648.37,0.00030136,2]
[311023994,1704873048073,-1844.47,0.00030136,2]
[311023995,1704873048083,-1066.48,0.00030136,2]
[311023996,1704873048092,-500.0,0.00030136,2]
[311023997,1704873048101,-500.0,0.00030136,2]
[311023998,1704873048110,-500.0,0.00030136,2]
[311023999,1704873048119,-908.11,0.00030136,2]
[311024000,1704873048128,-914.77,0.00030136,2]
[311024001,1704873048137,-500.0,0.00030136,2]
[311024002,1704873048147,-500.0,0.00030136,2]
[311024003,1704873048157,-301.71651932,0.00030136,2]
[311024004,1704873048166,-500.0,0.00030136,2]
[311024005,1704873048175,-500.0,0.00030136,2]
[311024006,1704873048185,-636.5583259,0.00030136,2]
[311024007,1704873048194,-500.0,0.00030136,2]
[311024008,1704873048204,-926.31,0.00030136,2]
[311024009,1704873048213,-2029.1,0.00030136,2]
[311024010,1704873048222,-644.04,0.00030136,2]
[311024011,1704873048231,-500.0,0.00030136,2]
[311024012,1704873048241,-500.0,0.00030136,2]
[311024013,1704873048250,-500.0,0.00030136,2]
[311024014,1704873048259,-500.0,0.00030136,2]
[311024015,1704873048268,-500.0,0.00030136,2]
[311024016,1704873048278,-1198.29,0.00030136,2]
[311024017,1704873048287,-1948.61,0.00030136,2]
[311024018,1704873048296,-1624.99,0.00030136,2]
[311024019,1704873048305,-994.71,0.00030136,2]
[311024020,1704873048314,-1211.39,0.00030136,2]
[311024021,1704873048323,-500.0,0.00030136,2]
[311024022,1704873048332,-1786.72,0.00030136,2]
[311024023,1704873048342,-500.0,0.00030136,2]
[311024024,1704873048351,-1120.55,0.00030136,2]
[311024025,1704873048360,-500.0,0.00030136,2]
[311024026,1704873048370,-500.0,0.00030136,2]
[311024027,1704873048378,-961.57,0.00030136,2]
[311024028,1704873048388,-500.0,0.00030136,2]
[311024029,1704873048397,-515.48839603,0.00030136,2]
[311024030,1704873048406,-500.0,0.00030136,2]
[311024031,1704873048415,-530.95,0.00030136,2]
[311024032,1704873048425,-932.64,0.00030136,2]
[311024033,1704873048433,-604.28,0.00030136,2]
[311024034,1704873048442,-871.32,0.00030136,2]
[311024035,1704873048451,-834.43,0.00030136,2]
[311024036,1704873048461,-588.04,0.00030136,2]
[311024037,1704873048470,-582.56,0.00030136,2]
[311024038,1704873048478,-500.0,0.00030136,2]
[311024039,1704873048488,-926.79,0.00030136,2]
[311024040,1704873048497,-910.03,0.00030136,2]
[311024041,1704873048506,-1433.8,0.00030136,2]
[311024042,1704873048515,-500.0,0.00030136,2]
[311024043,1704873048524,-522.78,0.00030136,2]
[311024044,1704873048533,-1734.45,0.00030136,2]
[311024045,1704873048542,-1753.3,0.00030136,2]
[311024046,1704873048552,-2732.98,0.00030136,2]
[311024047,1704873048561,-500.0,0.00030136,2]
[311024048,1704873048570,-500.0,0.00030136,2]
[311024049,1704873048579,-1244.1,0.00030136,2]
[311024050,1704873048588,-500.0,0.00030136,2]
[311024051,1704873048598,-500.0,0.00030136,2]
[311024052,1704873048607,-1350.89,0.00030136,2]
[311024053,1704873048616,-781.62,0.00030136,2]
[311024054,1704873048625,-500.0,0.00030136,2]
[311024055,1704873048634,-500.0,0.00030136,2]
[311024056,1704873048643,-500.0,0.00030136,2]
[311024057,1704873048653,-500.0,0.00030136,2]
[311024058,1704873048662,-981.17,0.00030136,2]
[311024059,1704873048700,-500.0,0.00030136,2]
[311024060,1704873048709,-1911.43,0.00030136,2]
[311024061,1704873048718,-500.0,0.00030136,2]
[311024062,1704873048727,-500.0,0.00030136,2]
[311024063,1704873048736,-1008.93,0.00030136,2]
[311024064,1704873048745,-500.0,0.00030136,2]
[311024065,1704873048754,-986.22,0.00030136,2]
[311024066,1704873048763,-500.0,0.00030136,2]
[311024067,1704873048772,-548.72,0.00030136,2]
[311024068,1704873048781,-2028.87,0.00030136,2]
[311024069,1704873048790,-1869.36,0.00030136,2]
[311024070,1704873048799,-500.0,0.00030136,2]
[311024071,1704873048808,-500.0,0.00030136,2]
[311024072,1704873048817,-1000.0,0.00030136,2]
[311024073,1704873048826,-941.34,0.00030136,2]
[311024074,1704873048835,-500.0,0.00030136,2]
[311024075,1704873048844,-500.0,0.00030136,2]
[311024076,1704873048853,-544.41,0.00030136,2]
[311024077,1704873048862,-500.0,0.00030136,2]
[311024078,1704873048871,-604.74,0.00030136,2]
[311024079,1704873048880,-712.53,0.00030136,2]
[311024080,1704873048890,-1854.53,0.00030136,2]
[311024081,1704873048899,-1296.4,0.00030136,2]
[311024082,1704873048908,-1825.36,0.00030136,2]
[311024083,1704873048918,-500.0,0.00030136,2]
[311024084,1704873048927,-500.0,0.00030136,2]
[311024085,1704873048937,-1827.61,0.00030136,2]
[311024086,1704873048946,-500.0,0.00030136,2]
[311024087,1704873048956,-500.0,0.00030136,2]
[311024088,1704873048965,-503.12807936,0.00030136,2]
[311024089,1704873048974,-500.0,0.00030136,2]
[311024090,1704873048983,-500.0,0.00030136,2]
[311024091,1704873048993,-500.0,0.00030136,2]